bitfinex/quotes_ETHUSD_20251011
["timestamp","ask_amount","ask_price","bid_price","bid_amount"]
[1760200338270,1.92,3837.4,3837.1,0.1296]
[1760200338433,1.92,3837.1,3836.2,2.60674496]
[1760200338629,1.92,3837.1,3836.4,2.60655829]
[1760200338835,1.92,3837.1,3837.0,0.1296]
[1760200339063,1.92,3837.1,3837.0,0.5645]
[1760200339669,1.92,3837.5,3837.0,0.5645]
[1760200339873,4.5258812,3837.5,3836.8,0.02606338]
[1760200340039,4.5258812,3837.5,3837.4,0.1296]
[1760200341765,1.92,3837.5,3837.4,0.5645]
[1760200343973,2.60600262,3837.3,3835.9,2.30323078]
[1760200344177,1.92,3837.5,3836.9,0.4349]
[1760200344358,4.52620276,3837.0,3836.9,0.4349]
[1760200344558,4.52620276,3837.0,3835.8,2.52273078]
[1760200344559,2.60631816,3836.9,3836.5,0.4349]
[1760200344777,16.16903793,3836.9,3836.6,0.4349]
[1760200344993,16.16903793,3836.9,3836.3,3.04156254]
[1760200345202,16.16903793,3836.9,3836.3,0.4349]
[1760200345561,18.7753153,3836.9,3836.3,0.4349]
[1760200345762,2.60647032,3836.7,3836.3,0.4349]
[1760200345969,1.92,3836.6,3836.3,0.4349]
[1760200346267,2.60647709,3836.6,3836.3,0.4349]
[1760200346465,1.92,3836.7,3836.4,0.4349]
[1760200346666,1.92,3836.7,3836.5,0.4349]
[1760200346890,1.92,3836.7,3836.0,2.60687437]
[1760200346891,1.92,3836.7,3836.6,0.4349]
[1760200347090,16.16903793,3836.9,3836.6,0.4349]
[1760200347367,1.92,3836.8,3836.6,0.4349]
[1760200348005,1.92,3836.8,3836.6,3.04136552]
[1760200348184,16.16903793,3837.7,3836.8,2.60631916]
[1760200348384,16.16903793,3837.7,3836.7,0.4349]
[1760200348597,1.92,3837.1,3836.7,0.4349]
[1760200348901,1.92,3837.1,3836.8,0.4349]
[1760200349104,1.92,3837.4,3836.8,0.4349]
[1760200349263,1.92,3837.0,3836.8,0.4349]
[1760200349776,2.60517779,3838.6,3836.3,0.6336]
[1760200349977,16.16903793,3837.1,3836.9,0.4495]
[1760200350301,1.92,3836.8,3836.6,0.4495]
[1760200350502,4.52633861,3836.8,3836.1,0.2322]
[1760200350676,4.52620597,3837.0,3836.6,0.4495]
[1760200350883,1.92,3837.0,3836.7,0.4495]
[1760200351100,1.92,3837.0,3836.8,0.4495]
[1760200351605,2.60636358,3836.8,3836.4,0.4495]
[1760200352103,2.60636358,3836.8,3836.1,2.8390011]
[1760200352402,2.60636358,3836.8,3836.5,0.4495]
[1760200352573,1.92,3836.6,3836.2,0.4495]
[1760200352774,1.92,3836.6,3836.1,0.2322]
[1760200352973,1.92,3836.6,3836.2,0.4495]
[1760200353174,1.92,3836.6,3836.3,0.4495]
[1760200353471,1.92,3836.1,3835.8,0.002]
[1760200353676,1.92,3836.3,3835.8,0.002]
[1760200353872,1.92,3836.3,3836.0,0.1296]
[1760200354079,16.59363793,3836.4,3835.8,0.002]
[1760200354080,4.52695012,3835.9,3835.8,0.002]
[1760200354497,4.52695012,3835.9,3835.8,0.1316]
[1760200356618,4.94905012,3835.9,3835.8,0.002]
[1760200357279,4.52695012,3835.9,3835.8,0.002]
[1760200357612,4.52695012,3835.9,3835.8,0.1316]
[1760200357613,20.69598805,3835.9,3835.8,0.1316]
[1760200357918,21.11558805,3835.9,3835.8,0.1316]
[1760200358417,21.11558805,3835.9,3835.8,0.0816]
[1760200359111,20.69598805,3835.9,3835.8,0.0816]
[1760200359608,21.11558805,3835.9,3835.8,0.0816]
[1760200359806,21.11558805,3835.9,3835.1,0.4495]
[1760200359807,1.92,3835.8,3835.1,3.05697649]
[1760200360188,1.92,3835.8,3835.7,0.1296]
[1760200360591,2.60680787,3836.2,3835.7,0.1296]
[1760200360922,1.92,3836.3,3835.7,0.1296]
[1760200361118,2.6066796,3836.3,3836.1,0.1296]
[1760200361427,4.98534625,3836.2,3836.1,0.1296]
[1760200362626,4.52674625,3836.2,3836.1,0.1296]
[1760200362826,4.52674625,3836.2,3834.5,4.91107917]
[1760200362827,1.92,3836.1,3835.0,0.4495]
[1760200363123,1.92,3835.5,3835.0,0.4495]
[1760200363745,1.92,3835.5,3835.1,0.4283]
[1760200363926,2.6072429,3835.5,3835.1,0.4283]
[1760200364432,0.4586,3835.5,3834.1,0.6336]
[1760200364593,0.1327,3836.6,3834.1,0.6336]
[1760200364594,1.92,3834.6,3834.1,0.4283]
[1760200364794,1.92,3834.6,3833.9,2.53923078]
[1760200364795,2.60784422,3834.6,3834.2,0.4283]
[1760200364989,2.60784422,3834.6,3833.9,0.236]
[1760200365191,1.92,3835.1,3834.0,0.4283]
[1760200365387,2.60769792,3834.8,3834.7,0.002]
[1760200370225,3.06629792,3834.8,3834.7,0.002]
[1760200370432,2.60769792,3834.8,3834.7,0.002]
[1760200371593,3.06629792,3834.8,3834.7,0.002]
[1760200372429,2.60769792,3834.8,3834.7,0.002]
[1760200372629,3.06629792,3834.8,3834.7,0.002]
[1760200372831,3.06629792,3834.8,3834.7,0.1316]
[1760200373632,1.92,3834.0,3833.4,0.4283]
[1760200373812,16.64253049,3833.9,3833.4,0.4283]
[1760200374127,16.64253049,3833.9,3833.5,0.4283]
[1760200374327,18.56253049,3833.9,3833.8,0.1304]
[1760200374729,18.56253049,3833.9,3833.1,2.60884205]
[1760200374730,1.92,3833.8,3833.2,0.4283]
[1760200374902,4.52838896,3833.8,3833.2,0.4283]
[1760200375519,1.92,3833.6,3833.2,0.4283]
[1760200375741,4.52853954,3833.6,3833.2,0.4283]
[1760200376144,1.92,3833.7,3833.2,0.4283]
[1760200376321,4.52844787,3833.7,3832.7,2.60911989]
[1760200376525,2.60846183,3833.7,3832.8,3.03734144]
[1760200376725,2.60846183,3833.7,3832.9,3.03728026]
[1760200376953,2.60846183,3833.7,3833.0,0.4283]
[1760200377322,1.92,3833.8,3833.0,0.4283]
[1760200377517,1.92,3833.8,3833.1,0.02608854]
[1760200377929,1.92,3833.8,3833.5,2.60856595]
[1760200378146,1.92,3833.8,3832.7,2.60907468]
[1760200378147,1.92,3833.8,3833.6,3.06289641]
[1760200378323,1.92,3833.8,3833.7,0.4283]
[1760200378523,1.92,3834.3,3833.7,0.4283]
[1760200378936,1.92,3834.3,3833.7,3.03671125]
[1760200379132,1.92,3834.3,3833.8,0.4283]
[1760200379336,16.64253049,3834.4,3833.9,0.4401]
[1760200379623,1.92,3834.3,3834.0,0.4401]
[1760200379824,1.92,3834.3,3834.1,0.4401]
[1760200380128,16.64253049,3834.4,3834.2,0.4401]
[1760200380334,1.92,3834.3,3834.1,0.2302]
[1760200380730,1.92,3834.3,3834.2,0.4401]
[1760200382825,16.64253049,3835.4,3834.2,4.6801]
[1760200383024,16.64253049,3835.4,3834.4,2.60794895]
[1760200383025,2.6074116,3835.3,3834.4,2.60794895]
[1760200383258,1.92,3834.7,3834.3,4.24]
[1760200383443,1.92,3834.7,3834.4,0.4401]
[1760200383645,1.92,3834.7,3834.3,4.24]
[1760200383845,1.92,3834.7,3833.9,3.04834855]
[1760200384045,1.92,3834.5,3833.9,3.04840334]
[1760200384222,1.92,3834.5,3833.9,0.4401]
[1760200384556,2.60791745,3834.5,3833.9,0.4401]
[1760200384745,2.60791745,3834.5,3834.4,0.1296]
[1760200385428,3.04141745,3834.5,3834.4,0.1296]
[1760200386286,4.52844614,3833.7,3833.6,0.002]
[1760200387244,4.95914614,3833.7,3833.6,0.002]
[1760200387645,4.52844614,3833.7,3833.6,0.002]
[1760200388763,1.92,3833.7,3833.6,0.4421]
[1760200389265,1.92,3833.7,3833.6,0.002]
[1760200390477,4.95644614,3833.7,3833.6,0.002]
[1760200390675,4.52844614,3833.7,3833.6,0.002]
[1760200391145,4.95644614,3833.7,3833.6,0.002]
[1760200391351,2.60933231,3832.4,3831.6,0.4401]
[1760200391586,1.92,3832.6,3831.6,0.4401]
[1760200391784,1.92,3832.6,3831.7,0.02609807]
[1760200391949,1.92,3832.6,3832.1,2.60948489]
[1760200392150,1.92,3833.2,3832.5,0.2302]
[1760200392351,1.92,3833.2,3831.8,3.04981213]
[1760200392551,1.92,3832.7,3831.9,2.60965403]
[1760200392751,1.92,3832.7,3832.0,2.60958034]
[1760200392953,1.92,3832.7,3831.9,2.60965644]
[1760200393151,2.60914419,3832.7,3831.8,0.4401]
[1760200393379,0.428,3833.1,3831.8,0.4401]
[1760200393595,16.64253049,3832.7,3831.8,0.4401]
[1760200393752,1.92,3832.6,3831.8,0.4401]
[1760200393954,1.92,3832.6,3831.8,2.60968778]
[1760200394171,1.92,3832.6,3831.6,0.4401]
[1760200394572,1.92,3832.2,3831.2,0.4401]
[1760200394774,1.92,3832.2,3831.4,2.61000545]
[1760200395064,2.6093471,3832.4,3831.6,2.60981324]
[1760200395265,1.92,3832.6,3831.7,2.609801]
[1760200395659,1.92,3832.6,3831.5,2.60990834]
[1760200395984,1.92,3832.9,3832.1,2.60947782]
[1760200396293,1.92,3832.9,3832.8,0.1304]
[1760200396490,2.60885638,3833.1,3832.8,0.1304]
[1760200396679,1.92,3833.2,3832.8,0.1304]
[1760200396880,3.03685498,3833.1,3832.1,0.4401]
[1760200397090,1.92,3833.2,3833.1,0.1304]
[1760200397464,4.52878639,3833.2,3833.1,0.1304]
[1760200398001,2.348,3833.2,3831.5,2.60994388]
[1760200398297,2.348,3833.2,3830.2,2.61080955]
[1760200398298,0.428,3833.1,3832.1,2.60952831]
[1760200398998,2.60900369,3832.9,3832.1,2.60952831]
[1760200399400,0.4335,3833.5,3832.1,2.60948123]
[1760200399600,1.92,3833.4,3832.1,2.60947765]
[1760200399804,1.92,3833.0,3832.2,2.60943047]
[1760200400003,2.60894552,3833.0,3831.5,0.6336]
[1760200400210,19.68481933,3833.2,3831.3,0.6336]
[1760200400382,4.52905906,3832.8,3832.0,2.60958904]
[1760200400581,2.60885445,3833.1,3831.0,2.61027868]
[1760200400582,0.4335,3832.9,3831.0,2.61027868]
[1760200400913,2.60927713,3832.5,3831.6,2.60983649]
[1760200401077,1.92,3832.3,3831.5,2.60990677]
[1760200401473,0.4335,3832.5,3831.2,0.6336]
[1760200401696,2.60938048,3832.4,3831.6,2.60986616]
[1760200401874,2.60928073,3832.5,3831.5,2.60994388]
[1760200402193,2.6092181,3832.6,3831.8,2.60972174]
[1760200402384,1.92,3832.5,3831.8,2.60972174]
[1760200402970,2.60926596,3832.5,3831.7,2.60980177]
[1760200404713,1.92,3832.5,3831.8,2.60968239]
[1760200404895,1.92,3832.4,3831.7,2.6097927]
[1760200405108,2.60934051,3832.4,3831.5,2.60992941]
[1760200405511,2.60934051,3832.4,3831.6,2.60987204]
[1760200405719,2.60942027,3832.3,3831.4,3.05005462]
[1760200406103,2.60946911,3832.2,3831.4,3.05005462]
[1760200406299,2.60946911,3832.2,3831.4,0.4401]
[1760200406597,2.60946911,3832.2,3831.4,3.05009694]
[1760200406799,2.60939905,3832.3,3831.4,0.4401]
[1760200406999,2.60959355,3832.1,3831.4,0.4401]
[1760200407223,2.60939905,3832.3,3831.4,0.4401]
[1760200407429,4.52940212,3832.3,3831.4,0.4401]
[1760200407611,2.60960933,3832.0,3831.4,0.4401]
[1760200407923,4.52940212,3832.3,3831.4,3.05008319]
[1760200407924,2.60948691,3832.2,3831.4,3.05008319]
[1760200408114,2.60948691,3832.2,3831.9,0.1304]
[1760200408424,3.04309631,3832.1,3831.2,2.61009241]
[1760200408724,2.60916994,3832.7,3831.0,2.61027981]
[1760200408725,2.6092678,3832.5,3831.7,2.60974285]
[1760200408928,1.92,3832.4,3832.0,0.1304]
[1760200409090,1.92,3832.6,3832.4,0.1304]
[1760200409290,0.4628,3832.6,3830.8,0.4497]
[1760200409522,1.92,3832.2,3831.4,2.60999856]
[1760200409726,2.60964662,3832.0,3831.1,2.61021166]
[1760200410291,2.60964662,3832.0,3831.2,2.6101438]
[1760200410496,2.60964662,3832.0,3831.3,2.61007478]
[1760200410824,2.60980981,3831.7,3831.0,0.4497]
[1760200411021,2.60975643,3831.8,3831.0,3.05997735]
[1760200411219,3.07238036,3832.1,3831.0,3.05997735]
[1760200411220,2.60981478,3831.7,3831.0,3.05997735]
[1760200411422,2.60981478,3831.7,3830.1,2.30323078]
[1760200411423,0.2325,3831.8,3830.4,0.6336]
[1760200411625,1.92,3831.7,3830.5,0.4497]
[1760200411830,1.92,3831.7,3830.9,2.61034052]
[1760200411831,4.52986348,3831.7,3830.9,2.61034052]
[1760200412322,1.92,3831.7,3830.6,2.61055709]
[1760200412626,1.92,3831.7,3830.7,0.4497]
[1760200412833,2.60988211,3831.6,3830.8,2.61042079]
[1760200413041,2.60988211,3831.6,3830.7,0.4497]
[1760200413333,3.07279462,3831.5,3830.7,2.61047795]
[1760200413826,3.07279462,3831.5,3830.0,0.2276]
[1760200413827,2.61016068,3831.2,3830.1,0.6336]
[1760200414032,2.61016068,3831.2,3830.3,2.61070815]
[1760200414225,2.61016068,3831.2,3830.0,0.6773]
[1760200414226,2.3828,3831.6,3830.0,0.6773]
[1760200414427,2.3828,3831.6,3830.2,2.61082784]
[1760200414633,2.3828,3831.6,3830.0,0.6773]
[1760200414634,2.3828,3831.6,3830.0,3.28826362]
[1760200414844,2.3828,3831.6,3830.0,0.6773]
[1760200414845,2.6102527,3831.1,3830.0,0.6773]
[1760200415130,2.6100342,3831.4,3830.5,2.610619]
[1760200415303,2.6100342,3831.4,3830.6,0.02610557]
[1760200415509,1.92,3831.5,3830.6,0.02610557]
[1760200415510,2.61009548,3831.3,3830.6,0.02610557]
[1760200415712,1.92,3831.5,3830.6,0.02610557]
[1760200415713,4.53000894,3831.5,3830.6,0.02610557]
[1760200416014,1.92,3831.5,3830.7,0.4497]
[1760200416623,1.92,3831.5,3830.6,2.61050262]
[1760200416940,4.52995325,3831.5,3830.6,2.61050262]
[1760200417231,4.52995821,3831.5,3830.3,0.4497]
[1760200417431,1.92,3831.5,3830.6,2.61053816]
[1760200418545,1.92,3831.5,3830.0,0.2276]
[1760200418851,1.92,3832.4,3830.8,3.24399985]
[1760200418998,0.4628,3832.3,3830.9,0.4497]
[1760200419400,0.4628,3832.3,3830.7,2.61048269]
[1760200419401,4.52974712,3831.8,3830.7,2.61048269]
[1760200419643,4.52973954,3831.8,3831.7,0.1304]
[1760200420238,4.99253954,3831.8,3831.7,0.1304]
[1760200421469,16.13906836,3831.8,3831.7,0.1304]
[1760200422328,13.52932882,3831.8,3830.6,0.002]
[1760200422529,4.52980765,3831.7,3831.5,0.1304]
[1760200422831,4.52987576,3831.6,3831.5,0.1304]
[1760200423033,4.99267576,3831.6,3831.5,0.1304]
[1760200423359,1.92,3831.5,3830.6,0.002]
[1760200423562,5.57326441,3830.7,3830.6,0.002]
[1760200423929,6.01696441,3830.7,3830.6,0.1324]
[1760200425139,5.57326441,3830.7,3830.6,0.1324]
[1760200425470,6.01696441,3830.7,3830.6,0.1324]
[1760200427051,1.92,3830.4,3829.4,2.61136077]
[1760200427331,5.57326441,3829.5,3829.1,2.61153175]
[1760200427651,5.57326441,3829.2,3829.1,3.07133175]
[1760200427853,5.57326441,3829.2,3829.1,0.4598]
[1760200428262,5.57326441,3829.2,3829.0,2.61164022]
[1760200428430,5.57326441,3829.2,3828.8,0.4598]
[1760200428635,0.4437,3830.1,3829.0,2.61164352]
[1760200428834,4.53107129,3829.9,3828.8,2.6117721]
[1760200429039,4.53107129,3829.9,3828.6,0.4598]
[1760200429040,0.4437,3829.8,3828.6,3.0717183]
[1760200429337,0.4437,3829.8,3828.9,2.61171345]
[1760200429671,0.4437,3829.8,3828.8,2.61177339]
[1760200429871,5.57326441,3828.9,3828.8,2.61177339]
[1760200431868,5.57326441,3828.9,3828.8,3.07157339]
[1760200432072,5.57326441,3828.9,3828.8,2.61177339]
[1760200433456,6.45515286,3829.2,3829.1,2.61157477]
[1760200433866,6.45515286,3829.2,3829.1,2.61157974]
[1760200434054,6.45515286,3829.7,3829.1,0.4598]
[1760200434568,6.45515286,3829.7,3829.1,2.61157339]
[1760200434768,6.45515286,3829.3,3828.8,2.61178189]
[1760200435155,6.45515286,3829.3,3828.3,0.4598]
[1760200435497,6.45515286,3829.3,3829.0,2.61164497]
[1760200435698,6.45515286,3829.3,3829.2,2.61151154]
[1760200435984,6.45515286,3829.7,3829.2,0.4598]
[1760200436195,6.45515286,3829.7,3829.6,2.61123877]
[1760200436489,6.45515286,3829.7,3828.8,2.61173538]
[1760200436684,6.45515286,3829.7,3829.3,2.61138094]
[1760200436886,6.45515286,3829.7,3829.1,2.6115591]
[1760200436887,6.45515286,3829.7,3829.2,2.61150686]
[1760200437064,6.45515286,3829.7,3829.6,0.1304]
[1760200438189,8.37515286,3829.7,3829.6,2.74163877]
[1760200438354,1.92,3829.7,3829.6,0.1304]
[1760200438551,8.37515286,3829.7,3829.6,0.1304]
[1760200440488,2.61030305,3831.0,3829.6,0.1304]
[1760200440656,6.45515286,3830.0,3829.4,3.04056375]
[1760200440857,6.45515286,3830.5,3829.5,0.45531306]
[1760200441063,1.92,3830.4,3830.0,2.61090343]
[1760200441391,2.83481421,3831.7,3830.3,2.61069571]
[1760200441592,2.83481421,3831.7,3829.2,0.4292]
[1760200441593,6.45515286,3830.7,3829.2,0.4292]
[1760200441760,6.45515286,3830.2,3829.9,2.61101169]
[1760200442295,6.45515286,3830.2,3830.0,2.61096358]
[1760200442493,6.45515286,3830.6,3830.5,2.61061838]
[1760200442698,6.45515286,3830.6,3830.1,0.5563]
[1760200443005,1.92,3830.5,3830.3,2.61073764]
[1760200443297,1.92,3830.5,3830.1,0.5563]
[1760200443298,2.60983316,3831.7,3830.4,3.0398934]
[1760200443498,2.60982103,3831.7,3830.6,2.61049985]
[1760200443669,6.45515286,3832.1,3830.5,3.03981271]
[1760200443670,2.60974719,3831.8,3830.5,3.03981271]
[1760200443869,0.4674,3831.9,3830.6,2.61055709]
[1760200444070,2.3874,3831.9,3831.0,2.61027902]
[1760200444270,6.45515286,3832.4,3830.6,2.61055709]
[1760200444468,6.45515286,3832.4,3831.5,2.60993653]
[1760200444693,0.4674,3832.3,3830.7,0.4292]
[1760200444890,2.3874,3832.3,3830.7,0.4292]
[1760200445091,2.3874,3832.3,3831.3,2.61006888]
[1760200445280,0.4674,3832.3,3831.4,2.61000717]
[1760200445601,9.05477239,3832.5,3831.4,2.61000961]
[1760200445772,6.44547632,3832.1,3830.2,2.30323078]
[1760200446099,6.44547632,3832.1,3830.0,2.61091736]
[1760200446100,1.92,3832.0,3831.2,2.61012929]
[1760200446299,1.92,3832.0,3830.9,2.61028642]
[1760200446300,1.92,3832.0,3831.1,2.61020613]
[1760200446506,1.92,3832.0,3831.1,3.03940613]
[1760200447502,2.60961914,3832.0,3831.0,2.61027857]
[1760200447704,1.92,3832.0,3831.1,2.61020728]
[1760200447910,1.92,3832.0,3831.0,0.4292]
[1760200448069,2.6090014,3832.9,3830.1,2.43033078]
[1760200448070,6.44547632,3832.5,3831.2,0.45530148]
[1760200448270,1.92,3832.4,3831.6,2.60986065]
[1760200448472,9.05439998,3833.0,3831.7,3.06508446]
[1760200448680,1.92,3832.5,3831.5,0.4292]
[1760200448907,1.92,3832.5,3831.5,3.03914214]
[1760200449408,1.92,3832.5,3831.5,0.4292]
[1760200449609,1.92,3831.7,3831.2,0.4292]
[1760200449904,1.92,3832.0,3831.3,0.4292]
[1760200450110,6.44547632,3832.5,3831.4,0.02610012]
[1760200450336,3.39293225,3834.6,3830.5,2.61061286]
[1760200450337,6.44547632,3833.1,3831.5,0.4292]
[1760200450513,2.60892849,3833.0,3832.4,0.1304]
[1760200450716,1.92,3832.6,3831.7,2.60979476]
[1760200451039,6.44547632,3832.7,3831.8,2.6097386]
[1760200451204,1.92,3832.6,3832.5,0.1304]
[1760200453304,2.3874,3832.6,3832.5,0.1304]
[1760200453632,4.9965948,3832.6,3832.5,0.1304]
[1760200453841,4.9965948,3832.6,3831.4,2.60999572]
[1760200453842,2.3874,3832.6,3832.3,0.1304]
[1760200454017,1.92,3832.6,3832.3,0.1304]
[1760200454514,1.92,3833.0,3832.5,0.1304]
[1760200454718,6.44547632,3833.5,3832.6,0.4292]
[1760200454901,1.92,3833.0,3832.1,0.1271]
[1760200455105,1.92,3833.0,3832.1,2.73661782]
[1760200455307,1.92,3833.0,3832.9,0.1304]
[1760200456002,1.92,3833.4,3832.9,0.1304]
[1760200456207,1.92,3833.8,3832.9,0.1304]
[1760200456511,6.44547632,3833.9,3833.3,0.1304]
[1760200456912,1.92,3833.8,3833.3,0.1304]
[1760200457326,6.44547632,3833.9,3833.3,0.1304]
[1760200457526,0.8165,3834.0,3833.3,0.1304]
[1760200458127,0.3491,3834.0,3832.9,0.0260899]
[1760200458330,3.07572182,3833.9,3833.6,0.1304]
[1760200458530,0.4674,3833.8,3833.6,0.1304]
[1760200458851,0.4674,3833.7,3833.6,0.1304]
[1760200459013,2.3874,3833.7,3833.6,0.1304]
[1760200459425,0.4674,3833.7,3833.6,0.1304]
[1760200460924,0.4674,3833.7,3832.7,3.03832325]
[1760200461422,0.4674,3833.7,3832.8,2.6090575]
[1760200461821,0.4674,3833.7,3832.9,2.60898887]
[1760200462232,0.4674,3833.7,3832.8,2.6090433]
[1760200462748,0.4674,3833.7,3832.7,3.06439883]
[1760200463416,0.4674,3833.7,3832.7,0.45529126]
[1760200464028,0.4674,3833.7,3832.6,2.60919]
[1760200464229,2.60802219,3834.4,3833.2,2.60872632]
[1760200464427,2.60878685,3834.7,3833.4,2.60859142]
[1760200464731,0.001,3834.7,3833.5,3.03777456]
[1760200465059,0.001,3834.7,3833.6,0.02608514]
[1760200465274,0.001,3834.7,3833.6,2.60848495]
[1760200465444,0.001,3834.7,3833.7,2.63452481]
[1760200465635,0.001,3834.7,3833.5,3.03778134]
[1760200465636,0.001,3834.7,3833.9,2.60825592]
[1760200465837,0.001,3834.7,3834.0,0.02608242]
[1760200466069,0.001,3834.7,3833.6,0.4292]
[1760200466070,0.001,3834.7,3833.8,2.60837811]
[1760200466444,0.001,3834.7,3833.9,2.63436816]
[1760200466653,0.001,3834.7,3834.0,2.60823217]
[1760200466855,0.001,3834.7,3834.6,0.1151]
[1760200467240,0.001,3834.7,3834.6,0.5443]
[1760200467439,0.001,3834.7,3834.1,0.1151]
[1760200467769,0.001,3834.7,3834.2,2.60810599]
[1760200468173,0.001,3834.7,3834.1,2.72327193]
[1760200468347,0.001,3834.7,3834.1,0.1151]
[1760200468549,0.001,3834.7,3833.7,2.60844342]
[1760200468871,0.001,3834.7,3833.8,0.4292]
[1760200469168,0.4684,3834.7,3833.8,2.60832455]
[1760200469364,0.4684,3834.7,3833.8,2.60833007]
[1760200469982,0.001,3834.7,3833.9,2.60827643]
[1760200470465,0.001,3834.7,3833.7,0.4593]
[1760200470669,2.60792119,3834.5,3833.3,0.1151]
[1760200470868,3.04587362,3834.4,3834.1,0.1304]
[1760200471046,0.4379,3834.3,3834.1,0.1304]
[1760200471448,1.92,3834.4,3834.1,0.1304]
[1760200471674,2.60799504,3834.4,3834.1,0.1304]
[1760200471842,0.4379,3834.3,3834.1,0.1304]
[1760200472377,2.3579,3834.2,3834.1,0.1304]
[1760200472575,2.3579,3834.2,3833.2,2.60878224]
[1760200472576,17.193142,3834.2,3831.8,4.91291526]
[1760200472733,1.92,3833.7,3832.2,0.4593]
[1760200472937,0.6532,3833.6,3832.7,2.60906196]
[1760200473139,0.6532,3833.6,3832.3,2.60935539]
[1760200473444,0.6532,3833.6,3832.7,2.609093]
[1760200474364,0.6532,3833.6,3832.2,0.4593]
[1760200474365,0.6532,3833.6,3832.8,2.60904046]
[1760200474569,0.6532,3833.6,3832.9,2.60896324]
[1760200474881,0.4379,3833.6,3832.8,2.6090479]
[1760200475664,1.92,3833.5,3832.6,2.60913065]
[1760200475871,3.04642114,3833.6,3832.7,2.60912517]
[1760200475872,0.4379,3833.6,3832.7,2.60912517]
[1760200476467,2.3579,3833.6,3832.7,2.60912517]
[1760200476682,1.92,3833.4,3831.9,0.4593]
[1760200476997,1.92,3832.8,3830.7,5.56412363]
[1760200477162,1.92,3832.5,3830.9,0.4593]
[1760200477488,1.92,3832.2,3831.2,2.61014257]
[1760200477692,1.92,3832.9,3830.9,0.4593]
[1760200477897,16.20207236,3833.0,3830.5,0.4593]
[1760200477898,3.04737213,3832.2,3830.5,0.4593]
[1760200478066,2.60965733,3832.0,3830.6,2.61055709]
[1760200478266,1.92,3831.8,3830.7,0.4593]
[1760200478481,1.92,3831.8,3830.9,2.61035009]
[1760200478656,1.92,3831.9,3831.0,2.61027176]
[1760200479183,1.92,3831.7,3830.9,2.61034405]
[1760200479559,1.92,3831.7,3830.7,3.06978111]
[1760200479760,1.92,3831.7,3830.5,2.6105575]
[1760200479761,2.60996069,3831.5,3830.5,0.4593]
[1760200480060,2.61013168,3831.3,3830.1,0.1271]
[1760200480395,2.61013168,3831.3,3830.3,2.61070889]
[1760200480985,1.92,3831.2,3830.4,2.61068844]
[1760200481380,1.92,3831.2,3830.2,2.61077505]
[1760200481598,1.92,3831.2,3830.3,2.61074176]
[1760200481801,1.92,3831.3,3830.3,2.61074176]
[1760200482295,2.61016621,3831.2,3830.1,2.73793325]
[1760200482460,1.92,3831.1,3830.1,0.1271]
[1760200482665,1.92,3831.1,3831.0,0.1304]
[1760200483383,3.04811638,3831.1,3831.0,0.1304]
[1760200483895,4.96811638,3831.1,3831.0,0.1304]
[1760200484389,2.61048712,3830.8,3829.6,0.5852]
[1760200484587,0.4334,3830.7,3829.6,2.61121652]
[1760200484899,2.61082155,3830.3,3829.5,0.002]
[1760200485258,0.4334,3830.3,3830.2,0.1304]
[1760200485861,4.96416155,3830.3,3830.2,0.1304]
[1760200486879,2.3534,3830.3,3830.2,0.1304]
[1760200488714,4.96416155,3830.3,3830.2,0.1304]
[1760200488912,2.3534,3830.3,3830.2,0.1304]
[1760200489303,4.96416155,3830.3,3830.2,0.1304]
[1760200489614,1.92,3829.9,3829.5,0.002]
[1760200490122,2.61097016,3830.0,3829.8,0.1304]
[1760200490323,0.2336,3829.9,3829.8,0.1304]
[1760200490685,0.667,3829.9,3829.8,0.1304]
[1760200491609,0.4334,3829.9,3829.8,0.1304]
[1760200491814,1.92,3830.2,3829.8,0.1304]
[1760200492123,0.667,3829.9,3829.8,0.1304]
[1760200492432,0.667,3829.9,3829.5,0.002]
[1760200492606,0.4334,3829.8,3829.5,0.002]
[1760200492923,2.3534,3829.8,3829.5,0.002]
[1760200493086,1.92,3829.6,3829.5,0.002]
[1760200493429,0.4334,3829.7,3829.5,0.002]
[1760200493787,1.92,3829.8,3829.5,0.002]
[1760200493982,0.4334,3829.6,3829.5,0.002]
[1760200494196,0.2336,3829.9,3829.5,0.002]
[1760200494420,2.3534,3829.8,3829.5,0.002]
[1760200494805,1.92,3829.6,3829.5,0.002]
[1760200495198,2.3534,3829.6,3829.5,0.002]
[1760200496787,0.4334,3829.6,3829.5,0.002]
[1760200497326,3.04463877,3829.6,3829.5,0.002]
[1760200497494,2.3534,3829.6,3829.5,0.002]
[1760200498510,4.96463877,3829.6,3829.5,0.002]
[1760200498827,2.3534,3829.6,3829.5,0.002]
[1760200500824,4.96463877,3829.6,3829.5,0.002]
[1760200501429,21.64200739,3829.6,3829.5,0.002]
[1760200501627,2.61184939,3828.8,3827.5,2.61267145]
[1760200501910,0.6336,3829.4,3827.4,0.1151]
[1760200501911,2.61193433,3828.6,3827.4,0.1151]
[1760200502110,1.92,3828.5,3826.2,5.7026241]
[1760200502447,16.67736862,3828.9,3828.3,0.1304]
[1760200502448,4.99035725,3828.4,3828.3,0.1304]
[1760200503112,2.3783,3828.4,3828.3,0.1304]
[1760200503336,1.92,3828.4,3828.3,0.1304]
[1760200503844,4.53205725,3828.4,3828.3,0.1304]
[1760200504341,2.3783,3828.4,3828.3,0.1304]
[1760200504549,4.99035725,3828.4,3828.3,0.1304]
[1760200505048,2.3783,3828.4,3828.3,0.1304]
[1760200505452,4.99035725,3828.4,3828.3,0.1304]
[1760200506716,2.3783,3828.4,3828.3,0.1304]
[1760200507251,1.92,3828.4,3828.3,0.1304]
[1760200507450,1.92,3828.4,3828.3,2.74252548]
[1760200507655,1.92,3828.4,3828.3,3.17092548]
[1760200508042,0.4583,3829.6,3828.3,0.5588]